{"text_format":"1","workbook":"xlsx","n_sheets":5,"sheets":["System","Реквизиты","Таблица  1 ","Таблица  2","печать"],"not_rendered":{"charts":0,"images":17,"macros":1,"external_links":1,"defined_names":1,"comments":0,"pivot_tables":0},"unopened":[],"bounds":{"document_bytes":16777216,"sheet_cells":100000,"rows_first":2000,"rows_last":500,"rows_between":2000,"halvings":0,"cell_chars":16384,"cell_head_chars":4096},"cells_cut":0,"cells_raw":0,"read":"whole","date_system":"1900"}

{"sheet":"System","index":0,"n_rows":1000,"n_cols":25,"rows_kept":1000,"cut":false,"hidden":true,"merged":[]}
["Форма",null,null,"Атрибуты",null,null,"Таблицы",null,"ORDERS","NAME","COL_COUNT","CODE_COL","ROW_COUNT","VAL_TYPE","Колонки ",null,"TABLE","ORDERS","NAME","INPUT_MASK","EDIT","VAL_LEN","COL_TYPE","EXPORT_ORDER","PROPERTY"]
["CODE_FORM","фхд_2017",null,"REPORTS_ATR_MODIFY_D",1,null,"COUNT_TABLE",2,1,"ФХД 1,2,5,6 раздел",5,1,0,null,null,null,1,1,"Ключ",null,0,4,1,1,0]
["NAME_FORM","ПЛАН финансово-хозяйственной деятельности. Период действия формы: c 01.01.2017",null,null,null,null,null,null,2,"ФХД 3,4 раздел",13,1,0,null,null,null,1,2,"№ п/п",null,0,8,1,2,0]
["DATE_FORM","01.01.2017",null,null,null,null,null,null,null,null,null,null,null,null,null,null,1,3,"Наименование показателя",null,0,75,1,3,0]
["DEP_CODE","101",null,null,null,null,null,null,null,null,null,null,null,null,null,null,1,4,"код строки",null,0,10,1,4,0]
["ORG_NAME","Распорядитель Управление образования и молодежной политики администрации Уссурийского городского округа",null,null,null,null,null,null,null,null,null,null,null,null,null,null,1,5,"Сумма",null,1,2,0,5,0]
["BUDG","УС",null,null,null,null,null,null,null,null,null,null,null,null,null,null,2,1,"Ключ",null,0,5,1,1,8]
["BUDG_NAME","Бюджет Уссурийского городского округа",null,null,null,null,null,null,null,null,null,null,null,null,null,null,2,2,"Наименование показателя",null,0,143,1,2,0]
["PERIOD_Y",2017,null,null,null,null,null,null,null,null,null,null,null,null,null,null,2,3,"Код строки",null,0,10,1,3,0]
["PERIOD_Q",1,null,null,null,null,null,null,null,null,null,null,null,null,null,null,2,4,"код БК",null,0,8,1,4,0]
["PERIOD_M",1,null,null,null,null,null,null,null,null,null,null,null,null,null,null,2,5,"/ ВСЕГО закупки 2017г",null,1,2,0,5,0]
["BEGIN_DATE","31.01.2017",null,null,null,null,null,null,null,null,null,null,null,null,null,null,2,6,"/ ВСЕГО закупки 2018г",null,1,2,0,6,0]
["PERIOD_TYPE",4,null,null,null,null,null,null,null,null,null,null,null,null,null,null,2,7,"/ ВСЕГО закупки 2019г",null,1,2,0,7,0]
["PERIOD_NUMBER","1",null,null,null,null,null,null,null,null,null,null,null,null,null,null,2,8,"ВСЕГО / 44фз 2017г",null,1,2,0,8,0]
["PERIOD","",null,null,null,null,null,null,null,null,null,null,null,null,null,null,2,9,"субсидия МЗ/ 44фз 18г",null,1,2,0,9,0]
["USER","use",null,null,null,null,null,null,null,null,null,null,null,null,null,null,2,10,"субсидия БК 78.1/ 44фз 19г",null,1,2,0,10,0]
["WEB",null,null,null,null,null,null,null,null,null,null,null,null,null,null,null,2,11,"субсидии кап.вложения / 223фз 2017г",null,1,0,0,11,0]
["USERPROXY","",null,null,null,null,null,null,null,null,null,null,null,null,null,null,2,12,"поступл.от оказ услуг / 223фз 2018г",null,1,2,0,12,0]
["VERSION_FORM","0",null,null,null,null,null,null,null,null,null,null,null,null,null,null,2,13,"гранты / 223фз 2019г",null,1,2,0,13,0]
["PROXY",""]
["PORT",""]
["SQL_SERVER","192.168.1.2"]
["BASE","svod_2014"]
["Заголовок",""]
[null,""]
[null,""]
["Ячейка ",""]
[null,""]
[null,""]
[null,""]
["1 квартал","1"]
["2 квартал","2"]
["3 квартал","3"]
["4 квартал","4"]
[null,""]
["Январь","1"]
["Февраль","2"]
["Март","3"]
["Апрель","4"]
["Май","5"]
["Июнь","6"]
["Июль","7"]
["Август","8"]
["Сентябрь","9"]
["Октябрь","10"]
["Ноябрь","11"]
["Декабрь","12"]
[null,""]
[null,""]
[null,""]
[null,""]
[null,""]
[null,""]
[null,""]
[null,""]
[null,""]
[null,""]
[null,""]
[null,""]
[null,""]
[null,""]
[null,""]
[null,""]
[null,""]
[null,""]
[null,""]
[null,""]
[null,""]
[null,""]
[null,""]
[null,""]
[null,""]
[null,""]
[null,""]
[null,""]
[null,""]
[null,""]
[null,""]
[null,""]
[null,""]
[null,""]
[null,""]
[null,""]
[null,""]
[null,""]
[null,""]
[null,""]
[null,""]
[null,""]
[null,""]
[null,""]
[null,""]
[null,""]
[null,""]
[null,""]
[null,""]
[null,""]
[null,""]
[null,""]
[null,""]
[null,""]
[null,""]
[null,""]
[null,""]
[null,""]
[null,""]
[null,""]
[null,""]
[null,""]
[null,""]
[null,""]
[null,""]
[null,""]
[null,""]
[null,""]
[null,""]
[null,""]
[null,""]
[null,""]
[null,""]
[null,""]
[null,""]
[null,""]
[null,""]
[null,""]
[null,""]
[null,""]
[null,""]
[null,""]
[null,""]
[null,""]
[null,""]
[null,""]
[null,""]
[null,""]
[null,""]
[null,""]
[null,""]
[null,""]
[null,""]
[null,""]
[null,""]
[null,""]
[null,""]
[null,""]
[null,""]
[null,""]
[null,""]
[null,""]
[null,""]
[null,""]
[null,""]
[null,""]
[null,""]
[null,""]
[null,""]
[null,""]
[null,""]
[null,""]
[null,""]
[null,""]
[null,""]
[null,""]
[null,""]
[null,""]
[null,""]
[null,""]
[null,""]
[null,""]
[null,""]
[null,""]
[null,""]
[null,""]
[null,""]
[null,""]
[null,""]
[null,""]
[null,""]
[null,""]
[null,""]
[null,""]
[null,""]
[null,""]
[null,""]
[null,""]
[null,""]
[null,""]
[null,""]
[null,""]
[null,""]
[null,""]
[null,""]
[null,""]
[null,""]
[null,""]
[null,""]
[null,""]
[null,""]
[null,""]
[null,""]
[null,""]
[null,""]
[null,""]
[null,""]
[null,""]
[null,""]
[null,""]
[null,""]
[null,""]
[null,""]
[null,""]
[null,""]
[null,""]
[null,""]
[null,""]
[null,""]
[null,""]
[null,""]
[null,""]
[null,""]
[null,""]
[null,""]
[null,""]
[null,""]
[null,""]
[null,""]
[null,""]
[null,""]
[null,""]
[null,""]
[null,""]
[null,""]
[null,""]
[null,""]
[null,""]
[null,""]
[null,""]
[null,""]
[null,""]
[null,""]
[null,""]
[null,""]
[null,""]
[null,""]
[null,""]
[null,""]
[null,""]
[null,""]
[null,""]
[null,""]
[null,""]
[null,""]
[null,""]
[null,""]
[null,""]
[null,""]
[null,""]
[null,""]
[null,""]
[null,""]
[null,""]
[null,""]
[null,""]
[null,""]
[null,""]
[null,""]
[null,""]
[null,""]
[null,""]
[null,""]
[null,""]
[null,""]
[null,""]
[null,""]
[null,""]
[null,""]
[null,""]
[null,""]
[null,""]
[null,""]
[null,""]
[null,""]
[null,""]
[null,""]
[null,""]
[null,""]
[null,""]
[null,""]
[null,""]
[null,""]
[null,""]
[null,""]
[null,""]
[null,""]
[null,""]
[null,""]
[null,""]
[null,""]
[null,""]
[null,""]
[null,""]
[null,""]
[null,""]
[null,""]
[null,""]
[null,""]
[null,""]
[null,""]
[null,""]
[null,""]
[null,""]
[null,""]
[null,""]
[null,""]
[null,""]
[null,""]
[null,""]
[null,""]
[null,""]
[null,""]
[null,""]
[null,""]
[null,""]
[null,""]
[null,""]
[null,""]
[null,""]
[null,""]
[null,""]
[null,""]
[null,""]
[null,""]
[null,""]
[null,""]
[null,""]
[null,""]
[null,""]
[null,""]
[null,""]
[null,""]
[null,""]
[null,""]
[null,""]
[null,""]
[null,""]
[null,""]
[null,""]
[null,""]
[null,""]
[null,""]
[null,""]
[null,""]
[null,""]
[null,""]
[null,""]
[null,""]
[null,""]
[null,""]
[null,""]
[null,""]
[null,""]
[null,""]
[null,""]
[null,""]
[null,""]
[null,""]
[null,""]
[null,""]
[null,""]
[null,""]
[null,""]
[null,""]
[null,""]
[null,""]
[null,""]
[null,""]
[null,""]
[null,""]
[null,""]
[null,""]
[null,""]
[null,""]
[null,""]
[null,""]
[null,""]
[null,""]
[null,""]
[null,""]
[null,""]
[null,""]
[null,""]
[null,""]
[null,""]
[null,""]
[null,""]
[null,""]
[null,""]
[null,""]
[null,""]
[null,""]
[null,""]
[null,""]
[null,""]
[null,""]
[null,""]
[null,""]
[null,""]
[null,""]
[null,""]
[null,""]
[null,""]
[null,""]
[null,""]
[null,""]
[null,""]
[null,""]
[null,""]
[null,""]
[null,""]
[null,""]
[null,""]
[null,""]
[null,""]
[null,""]
[null,""]
[null,""]
[null,""]
[null,""]
[null,""]
[null,""]
[null,""]
[null,""]
[null,""]
[null,""]
[null,""]
[null,""]
[null,""]
[null,""]
[null,""]
[null,""]
[null,""]
[null,""]
[null,""]
[null,""]
[null,""]
[null,""]
[null,""]
[null,""]
[null,""]
[null,""]
[null,""]
[null,""]
[null,""]
[null,""]
[null,""]
[null,""]
[null,""]
[null,""]
[null,""]
[null,""]
[null,""]
[null,""]
[null,""]
[null,""]
[null,""]
[null,""]
[null,""]
[null,""]
[null,""]
[null,""]
[null,""]
[null,""]
[null,""]
[null,""]
[null,""]
[null,""]
[null,""]
[null,""]
[null,""]
[null,""]
[null,""]
[null,""]
[null,""]
[null,""]
[null,""]
[null,""]
[null,""]
[null,""]
[null,""]
[null,""]
[null,""]
[null,""]
[null,""]
[null,""]
[null,""]
[null,""]
[null,""]
[null,""]
[null,""]
[null,""]
[null,""]
[null,""]
[null,""]
[null,""]
[null,""]
[null,""]
[null,""]
[null,""]
[null,""]
[null,""]
[null,""]
[null,""]
[null,""]
[null,""]
[null,""]
[null,""]
[null,""]
[null,""]
[null,""]
[null,""]
[null,""]
[null,""]
[null,""]
[null,""]
[null,""]
[null,""]
[null,""]
[null,""]
[null,""]
[null,""]
[null,""]
[null,""]
[null,""]
[null,""]
[null,""]
[null,""]
[null,""]
[null,""]
[null,""]
[null,""]
[null,""]
[null,""]
[null,""]
[null,""]
[null,""]
[null,""]
[null,""]
[null,""]
[null,""]
[null,""]
[null,""]
[null,""]
[null,""]
[null,""]
[null,""]
[null,""]
[null,""]
[null,""]
[null,""]
[null,""]
[null,""]
[null,""]
[null,""]
[null,""]
[null,""]
[null,""]
[null,""]
[null,""]
[null,""]
[null,""]
[null,""]
[null,""]
[null,""]
[null,""]
[null,""]
[null,""]
[null,""]
[null,""]
[null,""]
[null,""]
[null,""]
[null,""]
[null,""]
[null,""]
[null,""]
[null,""]
[null,""]
[null,""]
[null,""]
[null,""]
[null,""]
[null,""]
[null,""]
[null,""]
[null,""]
[null,""]
[null,""]
[null,""]
[null,""]
[null,""]
[null,""]
[null,""]
[null,""]
[null,""]
[null,""]
[null,""]
[null,""]
[null,""]
[null,""]
[null,""]
[null,""]
[null,""]
[null,""]
[null,""]
[null,""]
[null,""]
[null,""]
[null,""]
[null,""]
[null,""]
[null,""]
[null,""]
[null,""]
[null,""]
[null,""]
[null,""]
[null,""]
[null,""]
[null,""]
[null,""]
[null,""]
[null,""]
[null,""]
[null,""]
[null,""]
[null,""]
[null,""]
[null,""]
[null,""]
[null,""]
[null,""]
[null,""]
[null,""]
[null,""]
[null,""]
[null,""]
[null,""]
[null,""]
[null,""]
[null,""]
[null,""]
[null,""]
[null,""]
[null,""]
[null,""]
[null,""]
[null,""]
[null,""]
[null,""]
[null,""]
[null,""]
[null,""]
[null,""]
[null,""]
[null,""]
[null,""]
[null,""]
[null,""]
[null,""]
[null,""]
[null,""]
[null,""]
[null,""]
[null,""]
[null,""]
[null,""]
[null,""]
[null,""]
[null,""]
[null,""]
[null,""]
[null,""]
[null,""]
[null,""]
[null,""]
[null,""]
[null,""]
[null,""]
[null,""]
[null,""]
[null,""]
[null,""]
[null,""]
[null,""]
[null,""]
[null,""]
[null,""]
[null,""]
[null,""]
[null,""]
[null,""]
[null,""]
[null,""]
[null,""]
[null,""]
[null,""]
[null,""]
[null,""]
[null,""]
[null,""]
[null,""]
[null,""]
[null,""]
[null,""]
[null,""]
[null,""]
[null,""]
[null,""]
[null,""]
[null,""]
[null,""]
[null,""]
[null,""]
[null,""]
[null,""]
[null,""]
[null,""]
[null,""]
[null,""]
[null,""]
[null,""]
[null,""]
[null,""]
[null,""]
[null,""]
[null,""]
[null,""]
[null,""]
[null,""]
[null,""]
[null,""]
[null,""]
[null,""]
[null,""]
[null,""]
[null,""]
[null,""]
[null,""]
[null,""]
[null,""]
[null,""]
[null,""]
[null,""]
[null,""]
[null,""]
[null,""]
[null,""]
[null,""]
[null,""]
[null,""]
[null,""]
[null,""]
[null,""]
[null,""]
[null,""]
[null,""]
[null,""]
[null,""]
[null,""]
[null,""]
[null,""]
[null,""]
[null,""]
[null,""]
[null,""]
[null,""]
[null,""]
[null,""]
[null,""]
[null,""]
[null,""]
[null,""]
[null,""]
[null,""]
[null,""]
[null,""]
[null,""]
[null,""]
[null,""]
[null,""]
[null,""]
[null,""]
[null,""]
[null,""]
[null,""]
[null,""]
[null,""]
[null,""]
[null,""]
[null,""]
[null,""]
[null,""]
[null,""]
[null,""]
[null,""]
[null,""]
[null,""]
[null,""]
[null,""]
[null,""]
[null,""]
[null,""]
[null,""]
[null,""]
[null,""]
[null,""]
[null,""]
[null,""]
[null,""]
[null,""]
[null,""]
[null,""]
[null,""]
[null,""]
[null,""]
[null,""]
[null,""]
[null,""]
[null,""]
[null,""]
[null,""]
[null,""]
[null,""]
[null,""]
[null,""]
[null,""]
[null,""]
[null,""]
[null,""]
[null,""]
[null,""]
[null,""]
[null,""]
[null,""]
[null,""]
[null,""]
[null,""]
[null,""]
[null,""]
[null,""]
[null,""]
[null,""]
[null,""]
[null,""]
[null,""]
[null,""]
[null,""]
[null,""]
[null,""]
[null,""]
[null,""]
[null,""]
[null,""]
[null,""]
[null,""]
[null,""]
[null,""]
[null,""]
[null,""]
[null,""]
[null,""]
[null,""]
[null,""]
[null,""]
[null,""]
[null,""]
[null,""]
[null,""]
[null,""]
[null,""]
[null,""]
[null,""]
[null,""]
[null,""]
[null,""]
[null,""]
[null,""]
[null,""]
[null,""]
[null,""]
[null,""]
[null,""]
[null,""]
[null,""]
[null,""]
[null,""]
[null,""]
[null,""]
[null,""]
[null,""]
[null,""]
[null,""]
[null,""]
[null,""]
[null,""]
[null,""]
[null,""]
[null,""]
[null,""]
[null,""]
[null,""]
[null,""]
[null,""]
[null,""]
[null,""]
[null,""]
[null,""]
[null,""]
[null,""]
[null,""]
[null,""]
[null,""]
[null,""]
[null,""]
[null,""]
[null,""]
[null,""]
[null,""]
[null,""]
[null,""]
[null,""]
[null,""]
[null,""]
[null,""]
[null,""]
[null,""]
[null,""]
[null,""]
[null,""]
[null,""]
[null,""]
[null,""]
[null,""]
[null,""]
[null,""]
[null,""]
[null,""]
[null,""]
[null,""]
[null,""]
[null,""]
[null,""]
[null,""]
[null,""]
[null,""]
[null,""]
[null,""]
[null,""]
[null,""]
[null,""]
[null,""]
[null,""]
[null,""]
[null,""]
[null,""]
[null,""]
[null,""]
[null,""]
[null,""]
[null,""]
[null,""]
[null,""]
[null,""]
[null,""]
[null,""]
[null,""]
[null,""]
[null,""]
[null,""]
[null,""]
[null,""]
[null,""]
[null,""]
[null,""]
[null,""]
[null,""]
[null,""]
[null,""]
[null,""]
[null,""]
[null,""]
[null,""]
[null,""]
[null,""]
[null,""]
[null,""]
[null,""]
[null,""]
[null,""]
[null,""]

{"sheet":"Реквизиты","index":1,"n_rows":25,"n_cols":3,"rows_kept":25,"cut":false,"hidden":false,"merged":[[0,1,0,3],[1,1,1,8]]}
[null,"Excel-клиент v 1.4"]
[null,"Форма:фхд_2017 ПЛАН финансово-хозяйственной деятельности. Период действия формы: c 01.01.2017"]
[]
[]
[]
[]
[]
[]
[]
[]
[]
[]
[]
[]
[]
[]
[]
[]
[]
[]
[]
[]
[]
[null,"Атрибуты","Дата последнего изменения"]
[null,null,""]

{"sheet":"Таблица  1 ","index":2,"n_rows":46,"n_cols":5,"rows_kept":46,"cut":false,"hidden":false,"merged":[]}
["ФХД 1,2,5,6 раздел"]
["121216"]
["Ключ","№ п/п","Наименование показателя","код строки","Сумма"]
["1","2","3","4","5"]
["900",null,"I. Сведения о деятельности учреждения",null,0]
["1000","1","Цели и виды деятельности",null,0]
["1100","2","Перечень услуг (работ)",null,0]
["1200","3","Общая балансовая стоимость НЕДВИЖИМОГО мун. имущества",null,18101131.010000002]
["1300",null,"на праве оперативного управления",null,18101131.010000002]
["1400",null,"за счет выделенных средств",null,0]
["1500",null,"за счет доходов (от иной деятельности)",null,0]
["1600","4","Общая балансовая стоимость ДВИЖИМОГО мун. имущества",null,7958188.2199999997]
["1700",null,"особо ценное имущество",null,995086.17]
["1800",null,"ll. Показатели финансового состояния",null,0]
["1900",null,"",null,0]
["2000",null,"(запрет)",null,0]
["2100","№ п/п","наименование показателя   /    сумма",null,0]
["2200","1","Нефинансовые активы всего",null,73926455.420000002]
["2300","1.1.","из них : недвижимое, всего",null,18101131.010000002]
["2400","1.1.1.","в том числе: остаточная стоимость",null,11193326.699999999]
["2500","1.2.","особо ценное движимое, всего",null,995086.17]
["2600","1.2.1.","в том числе: остаточная стоимость",null,15509.84]
["2700","2","Финансовые активы всего",null,-73099621.459999993]
["2800","2.1.","из них: денежные средства, всего",null,17935.27]
["2900","2.1.1.","в том числе: денежные срведства на счетах",null,17935.27]
["3000","2.2.","денежные средства на депозитах в кредитных организациях"]
["3100","2.3.","иные финансовые документы"]
["3200","2.4.","дебиторская задолженность по доходам",null,92793.94]
["3300","2.5.","дебиторская задолженность по расходам",null,86742.52]
["3400","3","Обязательства всего",null,15747.25]
["3500","3.1.","из них: долговые обязательства",null,0]
["3600","3.2.","кредиторская задолженность",null,13515.86]
["3700","3.2.1.","в том числе: просроченная кредиторская задолж.",null,0]
["3800","","V Сведения о средствах, поступивших во временное распоряжение",null,0]
["3900",null,null,null,0]
["4000",null,null,null,0]
["4100",null,"наименование показателя / код строки / сумма",null,0]
["4200",null,"Остаток средств на начало года","010",0]
["4300",null,"Остаток средств на конец года","020",0]
["4400",null,"Поступление","030",0]
["4500",null,"Выбытие","040",0]
["4600",null,"VI Справочная информация",null,0]
["4700",null,"наименование показателя / код строки / сумма",null,0]
["4800",null,"Объем публичных обязательств, всего","010",0]
["4900",null,"Объем бюджетных инвестиций (переданные полномочия), всего","020",0]
["5000",null,"Объем средств, поступивших во временное распоряжение, всего","030",0]

{"sheet":"Таблица  2","index":3,"n_rows":73,"n_cols":14,"rows_kept":73,"cut":false,"hidden":false,"merged":[[2,13,63,13],[64,13,73,13]]}
["ФХД 3,4 раздел"]
[]
["Ключ","Наименование показателя","Код строки","код БК","не заполняется / ВСЕГО закупки 2017г","не заполняется / ВСЕГО закупки 2018г","не заполняется / ВСЕГО закупки 2019г","   ВСЕГО /        44фз 2017г","субсидия МЗ / 44фз 18г","субсидия БК 78.1 / 44фз 19г","субсидии кап.вложения / 223фз 2017г","поступл.от оказ услуг /            223фз 2018г","гранты /                223фз 2019г","заполняется \nтолько \n2017\n"]
["1","2","3","4","5","6","7","8","9","10","11","12","13"]
["1000","III. Показатели по поступлениям и выплатам",null,null,0,0,0,0,0,0,0,0,0]
["1100","на 1 января 2017г.",null,null,0,0,0,0,0,0,0,0,0]
["1200","","","",0,0,0,0,0,0,0,0,0]
["1300","","","",0,0,0,0,0,0,0,0,0]
["1400","","","",0,0,0,0,0,0,0,0,0]
["1500","","","",0,0,0,0,0,0,0,0,0]
["1600","ПОСТУПЛЕНИЯ ОТ ДОХОДОВ, ВСЕГО:","100","Х",0,0,0,{"$f":"H12+H13+H14+H15+H16+H17+H21","v":42934499},{"$f":"I13","v":40385867},{"$f":"J16","v":1682632},{"$f":"K16","v":0},{"$f":"L13+L17+L12","v":866000},{"$f":"M13+M14+M15+M17+M21","v":0}]
["1700","в том числе: доходы от собственности","110",null,0,0,0,{"$f":"L12","v":0},0,0,0,null,0]
["1800","доходы от оказания услуг, работ","120",null,0,0,0,{"$f":"I13+L13+M13","v":40385867},40385867,0,0]
["1900","доходы от штрафов, пеней иных сумм принудительного изъятия","130",null,0,0,0,{"$f":"M14","v":0},0,0,0,0]
["2000","безвозм.поступл. от наднац.орг.,правит.иностр.госуд.,международ.финан.организ.","140",null,0,0,0,{"$f":"M15","v":0},0,0,0,0]
["2100","иные субсидии, предоставляемые из бюджета","150",null,0,0,0,{"$f":"J16+K16","v":1682632},0,1682632,null,0,0]
["2200","прочие доходы","160",null,0,0,0,{"$f":"L17+M17","v":866000},0,0,0,{"$f":"L18+L19+L20","v":866000},{"$f":"M18+M19+M20","v":0}]
["2300","в том числе род.плата","161",null,0,0,0,{"$f":"L18+M18","v":0},0,0,0]
["2400","платные услуги","162",null,0,0,0,{"$f":"L19+M19","v":836000},0,0,0,836000]
["2500","добровольные пожертвования","163",null,0,0,0,{"$f":"L20+M20","v":30000},0,0,0,30000]
["2600","доходы от операций с активами","180",null,0,0,0,{"$f":"M21","v":0},0,0,0,0]
["2700","ВЫПЛАТЫ ПО РАСХОДАМ, ВСЕГО:","200","Х",0,0,0,{"$f":"H23+H27+H32+H33+H34+H41","v":42934499},40385867,1682632,0,866000,0]
["2800","в том числе, на выплаты персоналу всего:","210","",0,0,0,{"$f":"H24","v":35069967},34269967,0,0,800000,0]
["2900","из них:оплата труда и начисл.на выплаты по опл.тр.","211","",0,0,0,{"$f":"H25+H26","v":35069967},34269967,0,0,800000,0]
["3000","из них: оплата труда:","","111",0,0,0,{"$f":"I25+J25+K25+L25+M25","v":26821015},{"$f":"25487200+833815","v":26321015},null,null,500000]
["3100","начисления на выплаты по оплате труда","","119",0,0,0,{"$f":"I26+J26+K26+L26+M26","v":8248952},{"$f":"7697140+251812","v":7948952},null,null,300000]
["3200","Социальные или иные выплаты населению, всего","220","",0,0,0,{"$f":"H28+H29+H30+H31","v":3600},3600,0,0,0,0]
["3300","из них: прочие выплаты","","112",0,0,0,{"$f":"I28+J28+K28+L28+M28","v":0}]
["3400","прочие расходы (иные выплаты персоналу учрежд.,за исключ.фонда опл.труда)","","112",0,0,0,3600,3600]
["3500","транспортные услуги","","112",0,0,0,0]
["3600","прочие услуги","","112",0,0,0,0]
["3700","Уплата налогов, сборов и иных платежей, всего","230","",0,0,0,0]
["3800","Безвозмездные перечисления организациям","240","",0,0,0,0]
["3900","Прочие расходы(кроме расх.на закупку товаров,работ,услуг)","250","",0,0,0,{"$f":"H35+H36+H37+H38+H39+H40","v":952903},952903,0,0,0,0]
["4000","прочие расходы(питание спортсменов)","","113",0,0,0,{"$f":"I35+J35+K35+L35+M35","v":0}]
["4100","прочие расходы(трудоустройство несовершен.граждан(трудовые бригады)","","360",0,0,0,0]
["4200","прочие расходы(возмещение истцу расх. на гос.пошлину и уплата неустойки, оплюрасходов на экспертизу суд.актом,возмещ.ущерба должн.лицом по суду","","831",0,0,0,0]
["4300","прочие расходы(уплата налога на имущ.организаций,земельного налога)","","851",0,0,0,942103,942103]
["4400","прочие расходы(уплата трансп.налога,плата за загрязн.окр.среды,госпошлина учр.-ответчика по реш.суда)","","852",0,0,0,10800,10800]
["4500","прочие расходы(уплата штрафов,пеней(в т.ч. за несвоевремен.упл.налогов и сборов)","","853",0,0,0,0]
["4600","Расходы на закупку товаров,работ,услуг,всего","260","Х",0,0,0,{"$f":"H42+H45+H47","v":6908029},5159397,1682632,0,66000,0]
["4700","Закупка товаров,работ,услуг на капит.ремонт гос.(мун.) имущества","261","",0,0,0,{"$f":"I42+J42+K42+L42+M42","v":0},{"$f":"I43+I44","v":0},{"$f":"J43+J44","v":0},{"$f":"K43+K44","v":0},{"$f":"L43+L44","v":0},{"$f":"M43+M44","v":0}]
["4800","услуги по содержанию имущества","","243",0,0,0,{"$f":"I43+J43+K43+L43+M43","v":0}]
["4900","прочие услуги","","243",0,0,0,{"$f":"I44+J44+K44+L44+M44","v":0}]
["5000","Затраты на строит.объектов недвиж.имущ. гос.(мун.) учрежд.","262",null,0,0,0,{"$f":"H46","v":0},0,0,0,0,0]
["5100","прочие услуги","","417",0,0,0,{"$f":"I46+J46+K46+L46+M46","v":0}]
["5200","Прочая закупка товаров,работ и услуг для обеспечен.гос.(мун.) нужд","263","",0,0,0,{"$f":"I47+J47+K47+L47+M47","v":6908029},{"$f":"I48+I49+I50+I51+I52+I53+I54+I55+I56","v":5159397},{"$f":"J48+J49+J50+J51+J52+J53+J54+J55+J56","v":1682632},{"$f":"K48+K49+K50+K51+K52+K53+K54+K55+K56","v":0},{"$f":"L48+L49+L50+L51+L52+L53+L54+L55+L56","v":66000},{"$f":"M48+M49+M50+M51+M52+M53+M54+M55+M56","v":0}]
["5300","услуги связи","","244",0,0,0,{"$f":"I48+J48+K48+L48+M48","v":70382},67382,null,null,3000]
["5400","транспортные услуги","","244",0,0,0,0,null,null,null,0]
["5500","коммунальные услуги","","244",0,0,0,2301813,2298813,null,null,3000]
["5600","арендная плата за пользование имущества","","244",0,0,0,0]
["5700","услуги по содержанию имущества","","244",0,0,0,495849,479589,16260,null,0]
["5800","прочие услуги","","244",0,0,0,412298,395798,1500,null,15000]
["5900","прочие расходы (призы,кубки)","","244",0,0,0,0]
["6000","приобретение основных средств","","244",0,0,0,1863595,1844845,3750,null,15000]
["6100","приобретение материальных запасов","","244",0,0,0,1764092,72970,1661122,null,30000]
["6200","Поступление финансовых активов, всего","300","х",0,0,0,0]
["6300","из них: увеличение остатков средств","310","",0,0,0,0]
["6400","Прочие поступления","320","",0,0,0,0]
["6500","Выбытие финансовых активов, всего","400","",0,0,0,0]
["6600","из них: уменьшение остатков средств","410","",0,0,0,0]
["6700","прочие выбытия","420","",0,0,0,0]
["6800","Остаток средств на начало года","500","х",0,0,0,0]
["6900","Остаток средств на конец года","600","х",0,0,0,0,0,0,0,0,0]
["7000","IV. Показатели по поступлениям и выплатам учреждения","","","ВСЕГО закупки 2017г","ВСЕГО закупки 2018г","ВСЕГО закупки 2019г","44фз 2017г","44фз 18г","44фз 19г","223фз 2017г","/ 223фз 2018г","223фз 2019г","заполняется\n2017, 2018, 2019"]
["7100","на 1 января 2017 года","",""]
["7200","","",""]
["7300","","",""]
["7400","","",""]
["7500","","",""]
["7600","Выплаты по расходам на закупку товаров,рабт,услуг,всего:","0001","х",{"$f":"H71+K71","v":6908029},{"$f":"I71+L71","v":6980958},7089140,6908029,6980958,7089140,0,0,0]
["7700","в том числе:на оплату контрактов,закюч. до начала очередного фин.года:","1001","х",{"$f":"H72+K72","v":1661122},1661122,1661122,1661122,1661122,1661122]
["7800","на закупку товаров,работ,услуг по году начала закупки:","2001",null,{"$f":"H73+K73","v":5246907},5319836,5428018,{"$f":"H71-H72","v":5246907},{"$f":"I71-I72","v":5319836},5428018]

{"sheet":"печать","index":4,"n_rows":220,"n_cols":20,"rows_kept":220,"cut":false,"hidden":false,"merged":[[207,1,207,10],[208,1,208,10],[209,1,210,10],[213,1,213,4],[215,1,215,4],[200,2,200,6],[200,7,200,9],[201,2,201,6],[201,7,201,9],[204,1,204,11],[205,1,206,10],[197,2,197,6],[197,7,197,9],[198,2,198,6],[198,7,198,9],[199,2,199,6],[199,7,199,9],[194,2,194,6],[194,7,194,9],[195,2,195,6],[195,7,195,9],[196,2,196,6],[196,7,196,9],[191,2,191,6],[191,7,191,9],[192,2,192,6],[192,7,192,9],[193,2,193,6],[193,7,193,9],[187,2,188,6],[187,7,188,9],[189,2,189,6],[189,7,189,9],[190,2,190,6],[190,7,190,9],[179,0,179,12],[180,1,180,11],[181,1,182,10],[183,1,183,10],[184,1,184,10],[186,1,186,4],[136,0,136,4],[136,5,136,7],[136,8,136,11],[137,0,137,4],[137,5,137,7],[137,8,137,11],[134,0,134,4],[134,5,134,7],[134,8,134,11],[135,0,135,4],[135,5,135,7],[135,8,135,11],[130,0,130,4],[130,5,130,7],[130,8,130,11],[131,0,132,11],[133,0,133,4],[133,5,133,7],[133,8,133,11],[128,0,128,4],[128,5,128,7],[128,8,128,11],[129,0,129,4],[129,5,129,7],[129,8,129,11],[126,0,126,4],[126,5,126,7],[126,8,126,11],[127,0,127,4],[127,5,127,7],[127,8,127,11],[115,9,115,11],[121,0,122,11],[123,0,123,11],[124,0,124,11],[125,0,125,4],[125,5,125,7],[125,8,125,11],[110,0,110,3],[111,0,111,11],[112,0,112,11],[113,0,116,0],[113,1,116,1],[113,2,116,2],[113,3,113,11],[114,3,115,5],[114,6,114,11],[115,6,115,8],[104,0,104,3],[105,0,105,3],[106,0,106,3],[107,0,107,3],[108,0,108,3],[109,0,109,3],[98,0,98,3],[99,0,99,3],[100,0,100,3],[101,0,101,3],[102,0,102,3],[103,0,103,3],[92,0,92,3],[93,0,93,3],[94,0,94,3],[95,0,95,3],[96,0,96,3],[97,0,97,3],[86,0,86,3],[87,0,87,3],[88,0,88,3],[89,0,89,3],[90,0,90,3],[91,0,91,3],[80,0,80,3],[81,0,81,3],[82,0,82,3],[83,0,83,3],[84,0,84,3],[85,0,85,3],[74,0,74,3],[75,0,75,3],[76,0,76,3],[77,0,77,3],[78,0,78,3],[79,0,79,3],[68,0,68,3],[69,0,69,3],[70,0,70,3],[71,0,71,3],[72,0,72,3],[73,0,73,3],[62,0,62,3],[63,0,63,3],[64,0,64,3],[65,0,65,3],[66,0,66,3],[67,0,67,3],[56,0,56,3],[57,0,57,3],[58,0,58,3],[59,0,59,3],[60,0,60,3],[61,0,61,3],[52,0,55,3],[52,4,55,4],[52,5,55,5],[52,6,52,11],[53,6,55,6],[53,7,53,11],[54,7,55,7],[54,8,55,8],[54,9,55,9],[54,10,54,11],[47,1,47,4],[47,5,47,11],[48,1,48,4],[48,5,48,11],[49,0,50,11],[51,0,51,11],[44,1,44,4],[44,5,44,11],[45,1,45,4],[45,5,45,11],[46,1,46,4],[46,5,46,11],[41,1,41,4],[41,5,41,11],[42,1,42,4],[42,5,42,11],[43,1,43,4],[43,5,43,11],[38,1,38,4],[38,5,38,11],[39,1,39,4],[39,5,39,11],[40,1,40,4],[40,5,40,11],[35,1,35,4],[35,5,35,11],[36,1,36,4],[36,5,36,11],[37,1,37,4],[37,5,37,11],[32,1,32,4],[32,5,32,11],[33,1,33,4],[33,5,33,11],[34,1,34,4],[34,5,34,11],[27,0,27,4],[27,5,27,11],[28,0,28,11],[29,0,29,11],[30,5,30,6],[31,1,31,4],[31,5,31,11],[24,0,24,4],[24,5,24,11],[25,0,25,4],[25,5,25,11],[26,0,26,4],[26,5,26,11],[21,0,21,4],[21,5,21,11],[22,0,22,4],[22,5,22,11],[23,0,23,4],[23,5,23,11],[17,0,17,4],[17,5,17,11],[18,0,18,4],[18,5,18,11],[19,0,19,11],[20,0,20,4],[20,5,20,11],[14,0,14,4],[14,5,14,11],[15,0,15,4],[15,5,15,11],[15,14,15,17],[16,0,16,4],[16,5,16,11],[10,1,10,4],[11,0,11,11],[12,0,12,4],[12,5,12,11],[13,0,13,4],[13,5,13,11],[3,0,3,2],[3,8,3,11],[4,0,4,2],[7,0,7,11],[8,0,8,11],[9,0,9,11],[0,0,0,2],[0,3,0,4],[0,8,0,11],[1,3,1,4],[1,8,1,11],[2,0,2,2],[2,3,2,4],[2,8,2,11]]}
["                 Согласовано",null,null,null,null,null,null,null,"Утверждаю",null,null,null,2111]
["Начальник управления образования                                                        ",null,null,null,null,null,null,null,"И.о.директора МБОУ СОШ № 28"]
[" и молодежной политики                                                      "]
["__________________  О.Н.Минашкина                                          ",null,null,null,null,null,null,null,"_____________________________А.А.Пономаренко"]
["\"______\" ____________________ 2016 г.                                                                                    ",null,null,null,null,null,null,null,"\"_______\" ___________________ 2016 г.                                                                                    ",null,null,null,null,null,"ФОРМУЛЫ САМОКОНТРОЛЯ"]
[null,"                                                   "]
[null,null,null,null,null,null,null,null,null,null,null,null,null,null,2017]
["ПЛАН",null,null,null,null,null,null,null,null,null,null,null,null,null,{"$f":"G58-G69+G110","v":0},"должно равняться нулю"]
["ФИНАНСОВО-ХОЗЯЙСТВЕННОЙ ДЕЯТЕЛЬНОСТИ",null,null,null,null,null,null,null,null,null,null,null,null,null,"всего","(доход+ остаток на начало года-расход)"]
["на 2017 год и плановый период 2018-2019 гг."]
[]
["    Дата составления   \"_____\" _______________ 2016 г.           "]
["Наименование учреждения                                             ",null,null,null,null,"Муниципальное бюджетное общеобразовательное учреждение \"Средняя общеобразовательная школа № 28 \" г. Уссурийска Уссурийского городского округа",null,null,null,null,null,null,null,null,"субсидия МЗ ","субсидия БК 78.1","субсидии кап.вложения ","поступл.от оказ услуг /            ","гранты /                "]
["Наименование органа, осуществляющего функции и полномочия учредителя",null,null,null,null,"Управление  образования и моложёжной политики администрация Уссуриского городского округа",null,null,null,null,null,null,null,null,{"$f":"'Таблица  2'!I11+'Таблица  2'!I63-'Таблица  2'!I22","v":0},{"$f":"'Таблица  2'!J11+'Таблица  2'!J63-'Таблица  2'!J22","v":0},{"$f":"'Таблица  2'!K11+'Таблица  2'!K63-'Таблица  2'!K22","v":0},{"$f":"'Таблица  2'!L11+'Таблица  2'!L63-'Таблица  2'!L22","v":0},{"$f":"'Таблица  2'!M11+'Таблица  2'!M63-'Таблица  2'!M22","v":0}," должно равняться нулю, разница по каждому разделу- пост+ост-расх"]
["Адрес фактического местонахождения                                  ",null,null,null,null,"692502, Российская Федерация, Приморский край,  г. Уссурийск, ул. Владивостокское шоссе, 113 А"]
["ИНН/КПП, код  по реестру участников бюджетного процесса, а так же юридических лиц, не являющихся участниками бюджетного процесса                                                            ",null,null,null,null,"2511007955/251101001 ; 20206У49010"]
["Единица измерения                                                   ",null,null,null,null,"Рубль"]
["Финансовый год (финансовый год и плановый период), на который представлены сведения                                               ",null,null,null,null,"2017 год и плановый период 2018-2019 гг."]
["Наименование органа, осуществляющего ведение лицевого счета ",null,null,null,null,"Отдел № 11 Управления Федерального казначейства по Приморскому краю"]
["I. Сведения о деятельности учреждения"]
["1. Цели и виды деятельности учреждения (указываются в соответствии с нормативными правовыми актами и уставом учреждения)              ",null,null,null,null,"Цель- формирование общей культуры личности обучающихся на основе усвоения обязательного минимума содержания общеобразовательных программ; адаптация обучающихся к жизни в обществе, создание основы для осознанного выбора и последующего освоения профессиональных образовательных программ; воспитание гражданственности, трудолюбия обучающихся, уважения к правам и свободам человека, любви к окружающей природе, Родине, семье; формирование здорового образа жизни обучающихся;  формирование установок толерантного поведения.  "]
["2. Перечень услуг (работ), относящихся в соответствии с уставом учреждения к основным видам деятельности учреждения, предоставление которых для физических и юридических лиц осуществляется, в том числе за плату   ",null,null,null,null,"предоставление услуг по содержанию детей во внеучебное время; подготовка уроков, клубные часы, прогулки на свежем воздухе, спортивные мероприятия, посещение кинотеатра, музеев, выставок, бассейна;\nрепетиторство с обучающимися другого образовательного учреждения;\nдополнительное образование в студиях, кружках, секциях (деятельность которых выходит за рамки основной образовательной программы) художественной и иных направленностей;\nпреподавание курсов и циклов дисциплин за рамками основных образовательных программ по предметам учебного плана;\nпредоставление услуг по подготовке детей к школе (адаптации детей к условиям школьной жизни) – интеллектуальное развитие детей через занятия по обучению грамоте, математике, письму;\nдополнительное психологическое обслуживание обучающихся (мониторинги, скиринг - осмотры и т.д.), дополнительные услуги психолога  школы родителям обучающихся;\nинформационные услуги для всех участников образовательного процесса школы: использование фондов аудио-, видео-, медиапродуктов, электронных баз данных, электронного варианта полнотекстовых баз данных;\nорганизация работы в Интернете (навигация по Интернету, поиск и получение информации с сайтов (работа в режиме On-line, услуги электронной почты, дистанционное образование);\nуслуги по организации досуга детей (дискотеки, клубы по интересам, творческие мастерские, лектории, театры, концертная деятельность, организация экскурсий, туристических походов, спортивно–зрелищных мероприятий);\nуслуги по получению дополнительных знаний (занятия с обучающимися по предметам для подготовки к экзаменам в форме единого государственного экзамена и государственной итоговой аттестации);\nуслуги по проведению занятий в различных секциях и группах  по укреплению здоровья для детей и взрослых;\nпроведение спортивных праздников и соревнований;\nпроведение занятий на футбольном поле, волейбольной площадке, баскетбольной площадке, легкоатлетической дорожке, гимнастическом городке, хоккейной площадке."]
["3. Общая балансовая стоимость недвижимого муниципального имущества на дату составления Плана, в том числе:                  ",null,null,null,null,{"$f":"'Таблица  1 '!E8","v":18101131.010000002}]
["стоимость имущества, закрепленного собственником имущества за учреждением на праве оперативного управления;                      ",null,null,null,null,{"$f":"'Таблица  1 '!E9","v":18101131.010000002}]
["стоимость имущества, приобретенного учреждением за счет выделенных собственником имущества учреждения средств;                        ",null,null,null,null,{"$f":"'Таблица  1 '!E10","v":0}]
["стоимость имущества, приобретенного учреждением за счет доходов, полученных от иной приносящей доход деятельности                   ",null,null,null,null,{"$f":"'Таблица  1 '!E11","v":0}]
["4. Общая балансовая стоимость движимого муниципального имущества на дату составления Плана, в том числе:                            ",null,null,null,null,{"$f":"'Таблица  1 '!E12","v":7958188.2199999997}]
["балансовая стоимость особо ценного движимого имущества             ",null,null,null,null,{"$f":"'Таблица  1 '!E13","v":995086.17}]
["II. Показатели финансового состояния учреждения"]
["на 01   января     2017 г."]
[null,null,null,null,null,"(последнюю отчетную дату)"]
["№ п/п","Наименование показателя                     ",null,null,null,"Сумма, руб."]
[1,2,null,null,null,3]
[1,"Нефинансовые активы, всего:                                  ",null,null,null,{"$f":"'Таблица  1 '!E18","v":73926455.420000002}]
["1.1.","из них:  недвижимое имущество, всего:                                                       ",null,null,null,{"$f":"'Таблица  1 '!E19","v":18101131.010000002}]
["1.1.1.","в том числе: остаточная стоимость",null,null,null,{"$f":"'Таблица  1 '!E20","v":11193326.699999999}]
["1.2.","особо ценное движимое имущество, всего:",null,null,null,{"$f":"'Таблица  1 '!E21","v":995086.17}]
["1.2.1.","в том числе: остаточная стоимость ",null,null,null,{"$f":"'Таблица  1 '!E22","v":15509.84}]
[2,"Финансовые активы, всего:",null,null,null,{"$f":"'Таблица  1 '!E23","v":-73099621.459999993}]
["2.1.","из них:  денежные средства учреждения ,всего:                                                       ",null,null,null,{"$f":"'Таблица  1 '!E24","v":17935.27}]
["2.1.1.","в том числе: денежные средства учреждения на счетах",null,null,null,{"$f":"'Таблица  1 '!E25","v":17935.27}]
["2.2.","денежные средства учреждения, размещенные на депозиты в кредитной организации",null,null,null,{"$f":"'Таблица  1 '!E26","v":0}]
["2.3.","иные финансовые инструменты",null,null,null,{"$f":"'Таблица  1 '!E27","v":0}]
["2.4.","дебиторская задолженность по доходам ",null,null,null,{"$f":"'Таблица  1 '!E28","v":92793.94}]
["2.5.","дебиторская задолженность по расходам ",null,null,null,{"$f":"'Таблица  1 '!E29","v":86742.52}]
["3.","Обязательства, всего:",null,null,null,{"$f":"'Таблица  1 '!E30","v":15747.25}]
["3.1.","из них: долговые обязательства",null,null,null,{"$f":"'Таблица  1 '!E31","v":0}]
["3.2.","кредиторская задолженность:",null,null,null,{"$f":"'Таблица  1 '!E32","v":13515.86}]
["3.2.1.","в том числе: просроченная кредиторская задолженность",null,null,null,{"$f":"'Таблица  1 '!E33","v":0}]
["III. Показатели  по поступлениям и выплатам учреждения"]
[]
["на 01 января 2017 года"]
["Наименование показателя",null,null,null,"Код строки","Код вида расходов  Российской Федерации","Объем финансового обеспечения, руб. ( с точностью до двух знаков после запятой-0,00)"]
[null,null,null,null,null,null,"Всего","в том числе:"]
[null,null,null,null,null,null,null,"Субсидия на финансовое обеспечение выполнения муниципального задания","Субсидии, предоставляемые в соответствии с абзацем пункта 1 статьи 78.1 Бюджетного кодекса Российской Федерации","Субсидии на осуществление капитальных вложений","поступления от оказания услуг (выполнения работ) на платной основе и от иной приносящей доход деятельности"]
[null,null,null,null,null,null,null,null,null,null,"всего","из них гранты"]
[1,null,null,null,2,3,null,5,6,7,8,9]
["ПОСТУПЛЕНИЯ ОТ ДОХОДОВ,ВСЕГО:",null,null,null,100,"х",{"$f":"'Таблица  2'!H11","v":42934499},{"$f":"'Таблица  2'!I11","v":40385867},{"$f":"'Таблица  2'!J11","v":1682632},{"$f":"'Таблица  2'!K11","v":0},{"$f":"'Таблица  2'!L11","v":866000},{"$f":"'Таблица  2'!M11","v":0}]
["в том числе: доходы от  собственности",null,null,null,110,null,{"$f":"'Таблица  2'!H12","v":0},{"$f":"'Таблица  2'!I12","v":0},{"$f":"'Таблица  2'!J12","v":0},{"$f":"'Таблица  2'!K12","v":0},{"$f":"'Таблица  2'!L12","v":0},{"$f":"'Таблица  2'!M12","v":0}]
["доходы от оказания услуг, работ",null,null,null,120,null,{"$f":"'Таблица  2'!H13","v":40385867},{"$f":"'Таблица  2'!I13","v":40385867},{"$f":"'Таблица  2'!J13","v":0},{"$f":"'Таблица  2'!K13","v":0},{"$f":"'Таблица  2'!L13","v":0},{"$f":"'Таблица  2'!M13","v":0}]
["доходы от штрафов, пеней иных сумм принудительного изъятия",null,null,null,130,null,{"$f":"'Таблица  2'!H14","v":0},{"$f":"'Таблица  2'!I14","v":0},{"$f":"'Таблица  2'!J14","v":0},{"$f":"'Таблица  2'!K14","v":0},{"$f":"'Таблица  2'!L14","v":0},{"$f":"'Таблица  2'!M14","v":0}]
["безвозмездные поступления от наднациональных организаций, правительств иностранных государств, международных финансовых организаций",null,null,null,140,null,{"$f":"'Таблица  2'!H15","v":0},{"$f":"'Таблица  2'!I15","v":0},{"$f":"'Таблица  2'!J15","v":0},{"$f":"'Таблица  2'!K15","v":0},{"$f":"'Таблица  2'!L15","v":0},{"$f":"'Таблица  2'!M15","v":0}]
["иные субсидии, предоставленные из бюджета",null,null,null,150,null,{"$f":"'Таблица  2'!H16","v":1682632},{"$f":"'Таблица  2'!I16","v":0},{"$f":"'Таблица  2'!J16","v":1682632},{"$f":"'Таблица  2'!K16","v":0},{"$f":"'Таблица  2'!L16","v":0},{"$f":"'Таблица  2'!M16","v":0}]
["прочие доходы",null,null,null,160,null,{"$f":"'Таблица  2'!H17","v":866000},{"$f":"'Таблица  2'!I17","v":0},{"$f":"'Таблица  2'!J17","v":0},{"$f":"'Таблица  2'!K17","v":0},{"$f":"'Таблица  2'!L17","v":866000},{"$f":"'Таблица  2'!M17","v":0}]
["в том числе родительская плата",null,null,null,161,null,{"$f":"'Таблица  2'!H18","v":0},{"$f":"'Таблица  2'!I18","v":0},{"$f":"'Таблица  2'!J18","v":0},{"$f":"'Таблица  2'!K18","v":0},{"$f":"'Таблица  2'!L18","v":0},{"$f":"'Таблица  2'!M18","v":0}]
["платные услуги",null,null,null,162,null,{"$f":"'Таблица  2'!H19","v":836000},{"$f":"'Таблица  2'!I19","v":0},{"$f":"'Таблица  2'!J19","v":0},{"$f":"'Таблица  2'!K19","v":0},{"$f":"'Таблица  2'!L19","v":836000},{"$f":"'Таблица  2'!M19","v":0}]
["добровольные пожертвования ",null,null,null,163,null,{"$f":"'Таблица  2'!H20","v":30000},{"$f":"'Таблица  2'!I20","v":0},{"$f":"'Таблица  2'!J20","v":0},{"$f":"'Таблица  2'!K20","v":0},{"$f":"'Таблица  2'!L20","v":30000},{"$f":"'Таблица  2'!M20","v":0}]
["доходы от операций с активами",null,null,null,180,null,{"$f":"'Таблица  2'!H21","v":0},{"$f":"'Таблица  2'!I21","v":0},{"$f":"'Таблица  2'!J21","v":0},{"$f":"'Таблица  2'!K21","v":0},{"$f":"'Таблица  2'!L21","v":0},{"$f":"'Таблица  2'!M21","v":0}]
["ВЫПЛАТЫ ПО РАСХОДАМ,ВСЕГО:",null,null,null,200,"х",{"$f":"'Таблица  2'!H22","v":42934499},{"$f":"'Таблица  2'!I22","v":40385867},{"$f":"'Таблица  2'!J22","v":1682632},{"$f":"'Таблица  2'!K22","v":0},{"$f":"'Таблица  2'!L22","v":866000},{"$f":"'Таблица  2'!M22","v":0}]
["в том числе на: выплаты персоналу всего:",null,null,null,210,{"$f":"'Таблица  2'!D23","v":""},{"$f":"'Таблица  2'!H23","v":35069967},{"$f":"'Таблица  2'!I23","v":34269967},{"$f":"'Таблица  2'!J23","v":0},{"$f":"'Таблица  2'!K23","v":0},{"$f":"'Таблица  2'!L23","v":800000},{"$f":"'Таблица  2'!M23","v":0}]
["из них: оплата труда и начисления на выплаты по оплате труда",null,null,null,211,{"$f":"'Таблица  2'!D24","v":""},{"$f":"'Таблица  2'!H24","v":35069967},{"$f":"'Таблица  2'!I24","v":34269967},{"$f":"'Таблица  2'!J24","v":0},{"$f":"'Таблица  2'!K24","v":0},{"$f":"'Таблица  2'!L24","v":800000},{"$f":"'Таблица  2'!M24","v":0}]
["из них: оплата труда ",null,null,null,null,"111",{"$f":"'Таблица  2'!H25","v":26821015},{"$f":"'Таблица  2'!I25","v":26321015},{"$f":"'Таблица  2'!J25","v":0},{"$f":"'Таблица  2'!K25","v":0},{"$f":"'Таблица  2'!L25","v":500000},{"$f":"'Таблица  2'!M25","v":0}]
[" начисления на выплаты по оплате труда ",null,null,null,null,"119",{"$f":"'Таблица  2'!H26","v":8248952},{"$f":"'Таблица  2'!I26","v":7948952},{"$f":"'Таблица  2'!J26","v":0},{"$f":"'Таблица  2'!K26","v":0},{"$f":"'Таблица  2'!L26","v":300000},{"$f":"'Таблица  2'!M26","v":0}]
["Социальные и иные выплаты населению, всего",null,null,null,220,{"$f":"'Таблица  2'!D27","v":""},{"$f":"'Таблица  2'!H27","v":3600},{"$f":"'Таблица  2'!I27","v":3600},{"$f":"'Таблица  2'!J27","v":0},{"$f":"'Таблица  2'!K27","v":0},{"$f":"'Таблица  2'!L27","v":0},{"$f":"'Таблица  2'!M27","v":0}]
["из них: прочие выплаты ",null,null,null,null,{"$f":"'Таблица  2'!D28","v":"112"},{"$f":"'Таблица  2'!H28","v":0},{"$f":"'Таблица  2'!I28","v":0},{"$f":"'Таблица  2'!J28","v":0},{"$f":"'Таблица  2'!K28","v":0},{"$f":"'Таблица  2'!L28","v":0},{"$f":"'Таблица  2'!M28","v":0}]
[" прочие расходы  (иные выплаты персоналу учреждений, за исключением фонда оплаты труда)",null,null,null,null,{"$f":"'Таблица  2'!D29","v":"112"},{"$f":"'Таблица  2'!H29","v":3600},{"$f":"'Таблица  2'!I29","v":3600},{"$f":"'Таблица  2'!J29","v":0},{"$f":"'Таблица  2'!K29","v":0},{"$f":"'Таблица  2'!L29","v":0},{"$f":"'Таблица  2'!M29","v":0}]
["транспортные услуги ",null,null,null,null,{"$f":"'Таблица  2'!D30","v":"112"},{"$f":"'Таблица  2'!H30","v":0},{"$f":"'Таблица  2'!I30","v":0},{"$f":"'Таблица  2'!J30","v":0},{"$f":"'Таблица  2'!K30","v":0},{"$f":"'Таблица  2'!L30","v":0},{"$f":"'Таблица  2'!M30","v":0}]
["прочие услуги",null,null,null,null,{"$f":"'Таблица  2'!D31","v":"112"},{"$f":"'Таблица  2'!H31","v":0},{"$f":"'Таблица  2'!I31","v":0},{"$f":"'Таблица  2'!J31","v":0},{"$f":"'Таблица  2'!K31","v":0},{"$f":"'Таблица  2'!L31","v":0},{"$f":"'Таблица  2'!M31","v":0}]
["Уплату налогов, сборов и  иных платежей, всего",null,null,null,230,{"$f":"'Таблица  2'!D32","v":""},{"$f":"'Таблица  2'!H32","v":0},{"$f":"'Таблица  2'!I32","v":0},{"$f":"'Таблица  2'!J32","v":0},{"$f":"'Таблица  2'!K32","v":0},{"$f":"'Таблица  2'!L32","v":0},{"$f":"'Таблица  2'!M32","v":0}]
["безвозмездные перечисления организациям",null,null,null,240,{"$f":"'Таблица  2'!D33","v":""},{"$f":"'Таблица  2'!H33","v":0},{"$f":"'Таблица  2'!I33","v":0},{"$f":"'Таблица  2'!J33","v":0},{"$f":"'Таблица  2'!K33","v":0},{"$f":"'Таблица  2'!L33","v":0},{"$f":"'Таблица  2'!M33","v":0}]
["Прочие расходы (кроме расходов на закупку товаров, работ, услуг) ",null,null,null,250,{"$f":"'Таблица  2'!D34","v":""},{"$f":"'Таблица  2'!H34","v":952903},{"$f":"'Таблица  2'!I34","v":952903},{"$f":"'Таблица  2'!J34","v":0},{"$f":"'Таблица  2'!K34","v":0},{"$f":"'Таблица  2'!L34","v":0},{"$f":"'Таблица  2'!M34","v":0}]
[" прочие расходы (питание спортсменов)",null,null,null,null,{"$f":"'Таблица  2'!D35","v":"113"},{"$f":"'Таблица  2'!H35","v":0},{"$f":"'Таблица  2'!I35","v":0},{"$f":"'Таблица  2'!J35","v":0},{"$f":"'Таблица  2'!K35","v":0},{"$f":"'Таблица  2'!L35","v":0},{"$f":"'Таблица  2'!M35","v":0}]
[" прочие расходы (трудоустройство несовершеннолетних граждан(трудовые бригады)",null,null,null,null,{"$f":"'Таблица  2'!D36","v":"360"},{"$f":"'Таблица  2'!H36","v":0},{"$f":"'Таблица  2'!I36","v":0},{"$f":"'Таблица  2'!J36","v":0},{"$f":"'Таблица  2'!K36","v":0},{"$f":"'Таблица  2'!L36","v":0},{"$f":"'Таблица  2'!M36","v":0}]
[" прочие расходы (возмещение истцу расходов на государственную пошлину и уплата неустойки, оплата расходов на экспертизу судебным актом, возмещение ущерба должностным лицом по суду)",null,null,null,null,{"$f":"'Таблица  2'!D37","v":"831"},{"$f":"'Таблица  2'!H37","v":0},{"$f":"'Таблица  2'!I37","v":0},{"$f":"'Таблица  2'!J37","v":0},{"$f":"'Таблица  2'!K37","v":0},{"$f":"'Таблица  2'!L37","v":0},{"$f":"'Таблица  2'!M37","v":0}]
[" прочие расходы (уплата налога на имущество организаций, земельного налога)",null,null,null,null,{"$f":"'Таблица  2'!D38","v":"851"},{"$f":"'Таблица  2'!H38","v":942103},{"$f":"'Таблица  2'!I38","v":942103},{"$f":"'Таблица  2'!J38","v":0},{"$f":"'Таблица  2'!K38","v":0},{"$f":"'Таблица  2'!L38","v":0},{"$f":"'Таблица  2'!M38","v":0}]
[" прочие расходы (уплата транспортного налога, плата за загрязнение окружающей среды, госпошлина учреждения-ответчика по решению суда)",null,null,null,null,{"$f":"'Таблица  2'!D39","v":"852"},{"$f":"'Таблица  2'!H39","v":10800},{"$f":"'Таблица  2'!I39","v":10800},{"$f":"'Таблица  2'!J39","v":0},{"$f":"'Таблица  2'!K39","v":0},{"$f":"'Таблица  2'!L39","v":0},{"$f":"'Таблица  2'!M39","v":0}]
[" прочие расходы (уплата штрафов, пеней ( в т.ч.  за несвоевременную уплату налогов и сборов) ",null,null,null,null,{"$f":"'Таблица  2'!D40","v":"853"},{"$f":"'Таблица  2'!H40","v":0},{"$f":"'Таблица  2'!I40","v":0},{"$f":"'Таблица  2'!J40","v":0},{"$f":"'Таблица  2'!K40","v":0},{"$f":"'Таблица  2'!L40","v":0},{"$f":"'Таблица  2'!M40","v":0}]
["Расходы на закупку товаров, работ, услуг ,всего ",null,null,null,260,"х",{"$f":"'Таблица  2'!H41","v":6908029},{"$f":"'Таблица  2'!I41","v":5159397},{"$f":"'Таблица  2'!J41","v":1682632},{"$f":"'Таблица  2'!K41","v":0},{"$f":"'Таблица  2'!L41","v":66000},{"$f":"'Таблица  2'!M41","v":0}]
["Закупка товаров, работ, услуг  на  капитальный ремонт государственного (муниципального)  имущества",null,null,null,261,{"$f":"'Таблица  2'!D42","v":""},{"$f":"'Таблица  2'!H42","v":0},{"$f":"'Таблица  2'!I42","v":0},{"$f":"'Таблица  2'!J42","v":0},{"$f":"'Таблица  2'!K42","v":0},{"$f":"'Таблица  2'!L42","v":0},{"$f":"'Таблица  2'!M42","v":0}]
["услуги по содержанию имущества ",null,null,null,null,{"$f":"'Таблица  2'!D43","v":"243"},{"$f":"'Таблица  2'!H43","v":0},{"$f":"'Таблица  2'!I43","v":0},{"$f":"'Таблица  2'!J43","v":0},{"$f":"'Таблица  2'!K43","v":0},{"$f":"'Таблица  2'!L43","v":0},{"$f":"'Таблица  2'!M43","v":0}]
["прочие услуги ",null,null,null,null,{"$f":"'Таблица  2'!D44","v":"243"},{"$f":"'Таблица  2'!H44","v":0},{"$f":"'Таблица  2'!I44","v":0},{"$f":"'Таблица  2'!J44","v":0},{"$f":"'Таблица  2'!K44","v":0},{"$f":"'Таблица  2'!L44","v":0},{"$f":"'Таблица  2'!M44","v":0}]
[" Затраты на на строительство объектов недвижимого имущества государственными (муниципальными) учреждениями",null,null,null,262,null,{"$f":"'Таблица  2'!H45","v":0},{"$f":"'Таблица  2'!I45","v":0},{"$f":"'Таблица  2'!J45","v":0},{"$f":"'Таблица  2'!K45","v":0},{"$f":"'Таблица  2'!L45","v":0},{"$f":"'Таблица  2'!M45","v":0}]
["прочие услуги ",null,null,null,null,{"$f":"'Таблица  2'!D46","v":"417"},{"$f":"'Таблица  2'!H46","v":0},{"$f":"'Таблица  2'!I46","v":0},{"$f":"'Таблица  2'!J46","v":0},{"$f":"'Таблица  2'!K46","v":0},{"$f":"'Таблица  2'!L46","v":0},{"$f":"'Таблица  2'!M46","v":0}]
["Прочая закупка товаров, работ и услуг для обеспечения государственных (муниципальных) нужд",null,null,null,263,{"$f":"'Таблица  2'!D47","v":""},{"$f":"'Таблица  2'!H47","v":6908029},{"$f":"'Таблица  2'!I47","v":5159397},{"$f":"'Таблица  2'!J47","v":1682632},{"$f":"'Таблица  2'!K47","v":0},{"$f":"'Таблица  2'!L47","v":66000},{"$f":"'Таблица  2'!M47","v":0}]
["услуги связи ",null,null,null,null,{"$f":"'Таблица  2'!D48","v":"244"},{"$f":"'Таблица  2'!H48","v":70382},{"$f":"'Таблица  2'!I48","v":67382},{"$f":"'Таблица  2'!J48","v":0},{"$f":"'Таблица  2'!K48","v":0},{"$f":"'Таблица  2'!L48","v":3000},{"$f":"'Таблица  2'!M48","v":0}]
["транспортные услуги ",null,null,null,null,{"$f":"'Таблица  2'!D49","v":"244"},{"$f":"'Таблица  2'!H49","v":0},{"$f":"'Таблица  2'!I49","v":0},{"$f":"'Таблица  2'!J49","v":0},{"$f":"'Таблица  2'!K49","v":0},{"$f":"'Таблица  2'!L49","v":0},{"$f":"'Таблица  2'!M49","v":0}]
["коммунальные услуги ",null,null,null,null,{"$f":"'Таблица  2'!D50","v":"244"},{"$f":"'Таблица  2'!H50","v":2301813},{"$f":"'Таблица  2'!I50","v":2298813},{"$f":"'Таблица  2'!J50","v":0},{"$f":"'Таблица  2'!K50","v":0},{"$f":"'Таблица  2'!L50","v":3000},{"$f":"'Таблица  2'!M50","v":0}]
["арендная плата за пользование имущества ",null,null,null,null,{"$f":"'Таблица  2'!D51","v":"244"},{"$f":"'Таблица  2'!H51","v":0},{"$f":"'Таблица  2'!I51","v":0},{"$f":"'Таблица  2'!J51","v":0},{"$f":"'Таблица  2'!K51","v":0},{"$f":"'Таблица  2'!L51","v":0},{"$f":"'Таблица  2'!M51","v":0}]
["услуги по содержанию имущества ",null,null,null,null,{"$f":"'Таблица  2'!D52","v":"244"},{"$f":"'Таблица  2'!H52","v":495849},{"$f":"'Таблица  2'!I52","v":479589},{"$f":"'Таблица  2'!J52","v":16260},{"$f":"'Таблица  2'!K52","v":0},{"$f":"'Таблица  2'!L52","v":0},{"$f":"'Таблица  2'!M52","v":0}]
["прочие услуги ",null,null,null,null,{"$f":"'Таблица  2'!D53","v":"244"},{"$f":"'Таблица  2'!H53","v":412298},{"$f":"'Таблица  2'!I53","v":395798},{"$f":"'Таблица  2'!J53","v":1500},{"$f":"'Таблица  2'!K53","v":0},{"$f":"'Таблица  2'!L53","v":15000},{"$f":"'Таблица  2'!M53","v":0}]
["прочие расходы (призы,кубки)",null,null,null,null,{"$f":"'Таблица  2'!D54","v":"244"},{"$f":"'Таблица  2'!H54","v":0},{"$f":"'Таблица  2'!I54","v":0},{"$f":"'Таблица  2'!J54","v":0},{"$f":"'Таблица  2'!K54","v":0},{"$f":"'Таблица  2'!L54","v":0},{"$f":"'Таблица  2'!M54","v":0}]
["приобретение основных средств ",null,null,null,null,{"$f":"'Таблица  2'!D55","v":"244"},{"$f":"'Таблица  2'!H55","v":1863595},{"$f":"'Таблица  2'!I55","v":1844845},{"$f":"'Таблица  2'!J55","v":3750},{"$f":"'Таблица  2'!K55","v":0},{"$f":"'Таблица  2'!L55","v":15000},{"$f":"'Таблица  2'!M55","v":0}]
["приобретение материальных запасов ",null,null,null,null,{"$f":"'Таблица  2'!D56","v":"244"},{"$f":"'Таблица  2'!H56","v":1764092},{"$f":"'Таблица  2'!I56","v":72970},{"$f":"'Таблица  2'!J56","v":1661122},{"$f":"'Таблица  2'!K56","v":0},{"$f":"'Таблица  2'!L56","v":30000},{"$f":"'Таблица  2'!M56","v":0}]
["Поступление финансовых активов, всего:",null,null,null,300,{"$f":"'Таблица  2'!D57","v":"х"},{"$f":"'Таблица  2'!H57","v":0},{"$f":"'Таблица  2'!I57","v":0},{"$f":"'Таблица  2'!J57","v":0},{"$f":"'Таблица  2'!K57","v":0},{"$f":"'Таблица  2'!L57","v":0},{"$f":"'Таблица  2'!M57","v":0}]
["из них: увеличение остатков средств",null,null,null,310,{"$f":"'Таблица  2'!D58","v":""},{"$f":"'Таблица  2'!H58","v":0},{"$f":"'Таблица  2'!I58","v":0},{"$f":"'Таблица  2'!J58","v":0},{"$f":"'Таблица  2'!K58","v":0},{"$f":"'Таблица  2'!L58","v":0},{"$f":"'Таблица  2'!M58","v":0}]
["Прочие поступления",null,null,null,320,{"$f":"'Таблица  2'!D59","v":""},{"$f":"'Таблица  2'!H59","v":0},{"$f":"'Таблица  2'!I59","v":0},{"$f":"'Таблица  2'!J59","v":0},{"$f":"'Таблица  2'!K59","v":0},{"$f":"'Таблица  2'!L59","v":0},{"$f":"'Таблица  2'!M59","v":0}]
["Выбытие финансовых активов, всего",null,null,null,400,{"$f":"'Таблица  2'!D60","v":""},{"$f":"'Таблица  2'!H60","v":0},{"$f":"'Таблица  2'!I60","v":0},{"$f":"'Таблица  2'!J60","v":0},{"$f":"'Таблица  2'!K60","v":0},{"$f":"'Таблица  2'!L60","v":0},{"$f":"'Таблица  2'!M60","v":0}]
["из них: уменьшение остатков средств",null,null,null,410,{"$f":"'Таблица  2'!D61","v":""},{"$f":"'Таблица  2'!H61","v":0},{"$f":"'Таблица  2'!I61","v":0},{"$f":"'Таблица  2'!J61","v":0},{"$f":"'Таблица  2'!K61","v":0},{"$f":"'Таблица  2'!L61","v":0},{"$f":"'Таблица  2'!M61","v":0}]
["прочие выбытия",null,null,null,420,{"$f":"'Таблица  2'!D62","v":""},{"$f":"'Таблица  2'!H62","v":0},{"$f":"'Таблица  2'!I62","v":0},{"$f":"'Таблица  2'!J62","v":0},{"$f":"'Таблица  2'!K62","v":0},{"$f":"'Таблица  2'!L62","v":0},{"$f":"'Таблица  2'!M62","v":0}]
["Остаток средств на начало года",null,null,null,500,{"$f":"'Таблица  2'!D63","v":"х"},{"$f":"'Таблица  2'!H63","v":0},{"$f":"'Таблица  2'!I63","v":0},{"$f":"'Таблица  2'!J63","v":0},{"$f":"'Таблица  2'!K63","v":0},{"$f":"'Таблица  2'!L63","v":0},{"$f":"'Таблица  2'!M63","v":0}]
["Остаток средств на конец года",null,null,null,600,{"$f":"'Таблица  2'!D64","v":"х"},{"$f":"'Таблица  2'!H64","v":0},{"$f":"'Таблица  2'!I64","v":0},{"$f":"'Таблица  2'!J64","v":0},{"$f":"'Таблица  2'!K64","v":0},{"$f":"'Таблица  2'!L64","v":0},{"$f":"'Таблица  2'!M64","v":0}]
["IV. Показатели  по поступлениям и выплатам учреждения"]
["на 01 января 2017 года"]
["Наименование показателя","Код строки","Код бюджетной классификации Российской Федерации","Сумма выплат по расходам на закупку товаров, работ и услуг, руб.                                                                                                                              ( с точностью до двух знаков после запятой-0,00)"]
[null,null,null,"всего на закупки",null,null,"в том числе:"]
[null,null,null,null,null,null,"Федеральным законом от 05 апреля 2013 года №44-ФЗ \"О контрактной системе в сфере закупок товаров ,работ, услуг для обеспечения государственных  и муниципальных нужд\"",null,null,"в соответствии с Федеральным законом от 18 июля 2011 года №223-ФЗ \"О закупках товаров, работ, услуг отдельными видами юридических лиц\""]
[null,null,null,"на 2017 г. очередной финансовый год","на 2018 г. 1-ый год планового периода","на 2019 г. 2-ый год планового периода","на 2017 г. очередной финансовый год","на 2018 г. 1-ый год планового периода","на 2019 г. 2-ый год планового периода","на 2017 г. очередной финансовый год","на 2018 г. 1-ый год планового периода","на 2019 г. 2-ый год планового периода"]
[1,2,3,4,5,6,7,8,9,10,11,12]
["Выплаты по расходам на закупку товаров, работ ,услуг, всего:","0001","х",{"$f":"'Таблица  2'!E71","v":6908029},{"$f":"'Таблица  2'!F71","v":6980958},{"$f":"'Таблица  2'!G71","v":7089140},{"$f":"'Таблица  2'!H71","v":6908029},{"$f":"'Таблица  2'!I71","v":6980958},{"$f":"'Таблица  2'!J71","v":7089140},{"$f":"'Таблица  2'!K71","v":0},{"$f":"'Таблица  2'!L71","v":0},{"$f":"'Таблица  2'!M71","v":0}]
["в том числе: на оплату контрактов заключенных до начала очередного финансового года :","1001","х",{"$f":"'Таблица  2'!E72","v":1661122},{"$f":"'Таблица  2'!F72","v":1661122},{"$f":"'Таблица  2'!G72","v":1661122},{"$f":"'Таблица  2'!H72","v":1661122},{"$f":"'Таблица  2'!I72","v":1661122},{"$f":"'Таблица  2'!J72","v":1661122},{"$f":"'Таблица  2'!K72","v":0},{"$f":"'Таблица  2'!L72","v":0},{"$f":"'Таблица  2'!M72","v":0}]
["на закупку товаров работ, услуг погоду начала закупки:","2001",null,{"$f":"'Таблица  2'!E73","v":5246907},{"$f":"'Таблица  2'!F73","v":5319836},{"$f":"'Таблица  2'!G73","v":5428018},{"$f":"'Таблица  2'!H73","v":5246907},{"$f":"'Таблица  2'!I73","v":5319836},{"$f":"'Таблица  2'!J73","v":5428018},{"$f":"'Таблица  2'!K73","v":0},{"$f":"'Таблица  2'!L73","v":0},{"$f":"'Таблица  2'!M73","v":0}]
["V.Сведения о средствах, поступившых во временное распоряжение учреждения"]
[]
["на 01 января 2017 год"]
["(очередной финансовый год)"]
["Наименование показателя",null,null,null,null,"Код строки",null,null,"Сумма ( руб. с точностью до двух знаков после запятой-0,00)"]
[1,null,null,null,null,2,null,null,3]
["Остаток средств на начало года",null,null,null,null,"010",null,null,{"$f":"'Таблица  1 '!E38","v":0}]
["Остаток средств наконец года",null,null,null,null,"020",null,null,{"$f":"'Таблица  1 '!E39","v":0}]
["Поступление ",null,null,null,null,"030",null,null,{"$f":"'Таблица  1 '!E40","v":0}]
["Выбытие",null,null,null,null,"040",null,null,{"$f":"'Таблица  1 '!E41","v":0}]
["VI. Справочная информация"]
[]
["Наименование показателя",null,null,null,null,"Код строки",null,null,"Сумма ( руб. с точностью до двух знаков после запятой-0,00)"]
[1,null,null,null,null,2,null,null,3]
["Объем публичных обязательств, всего:",null,null,null,null,"010",null,null,{"$f":"'Таблица  1 '!E44","v":0}]
["Объем бюджетных инвестиций (в части переданных полномочий муниципального заказчика в соответствии с Бюджетным кодексом Российской Федерации),всего:",null,null,null,null,"020",null,null,{"$f":"'Таблица  1 '!E45","v":0}]
["Объем средств, поступивших во временное распоряжение ,всего",null,null,null,null,"030",null,null,{"$f":"'Таблица  1 '!E46","v":0}]
[]
["И.о.руководителя учреждения                                  ",null,null,null,null,null,null,"А.А.Пономаренко"]
[]
["Главный бухгалтер учреждения                     ",null,null,null,null,null,null,"И.Н.Садило"]
[]
["                                                                                                                                                 "]
["Исполнитель                                                  ",null,null,null,null,null,null,"И.Н.Садило"]
["                                                                                                                                                 "]
["Согласовано:"]
[]
["Начальник финансово-экономического"]
["отдела                                                             ",null,null,null,null,null,null,"Н.А. Вялкова"]
[]
["И.о. директора МКУ "]
["«Централизованная бухгалтерия"]
["учреждений образования»                                ",null,null,null,null,null,null,"И.А. Дзюба"]
["                                                                                                                                                  "]
["Начальник отдела планирования "]
["и анализа МКУ "]
["«Централизованная бухгалтерия"]
["учреждений образования»                                  ",null,null,null,null,null,null,"Е.Е. Гончар"]
["                                                                                                                                               "]
[]
[]
[]
[]
[]
[]
[]
[]
[]
[]
[]
[]
[]
[]
[]
[]
[]
[]
[]
["Заключение"]
[null,"на обоснованность расчетов, приведенных в пояснительной записке к Плану финансово-хозяйственной деятельности  на 2017 год и плановый период 2018-2019 годов, и соответствия показателей в информации о планируемых объемах расходных обязательств по учреждению:"]
[null,{"$f":"F13","v":"Муниципальное бюджетное общеобразовательное учреждение \"Средняя общеобразовательная школа № 28 \" г. Уссурийска Уссурийского городского округа"}]
[]
[null,"наименование учреждения"]
[]
[null,"Планируемые объемы расходных обязательств по учреждению:"]
[]
[null,null,"Наименование показателя",null,null,null,null,"Очередной финансовый год                                2017г."]
[]
[null,null,"Поступления, всего:",null,null,null,null,{"$f":"'Таблица  2'!H11","v":42934499}]
[null,null,"в том числе:"]
[null,null,"доходы от собственности",null,null,null,null,{"$f":"'Таблица  2'!H12","v":0}]
[null,null,"доходы от оказания услуг, работ",null,null,null,null,{"$f":"'Таблица  2'!H13","v":40385867}]
[null,null,"доходы от штрафов, пеней иных сумм принудительного изъятия",null,null,null,null,{"$f":"'Таблица  2'!H14","v":0}]
[null,null,"безвозмездные поступления от наднациональных организаций, правительств иностранных государств, международных финансовых организаций",null,null,null,null,{"$f":"'Таблица  2'!H15","v":0}]
[null,null,"иные субсидии, предоставленные из бюджета",null,null,null,null,{"$f":"'Таблица  2'!H16","v":1682632}]
[null,null,"прочие доходы",null,null,null,null,{"$f":"'Таблица  2'!H17","v":866000}]
[null,null,"в том числе родительская плата",null,null,null,null,{"$f":"'Таблица  2'!H18","v":0}]
[null,null,"платные услуги",null,null,null,null,{"$f":"'Таблица  2'!H19","v":836000}]
[null,null,"добровольные пожертвования ",null,null,null,null,{"$f":"'Таблица  2'!H20","v":30000}]
[null,null,"доходы от операций с активами",null,null,null,null,{"$f":"'Таблица  2'!H21","v":0}]
[null,null,"Расходы, всего",null,null,null,null,{"$f":"'Таблица  2'!H22","v":42934499}]
[]
[]
[null,"План финансово-хозяйственной деятельности на 2017 год и плановый период 2018-2019 годов (далее - План) по учреждению"]
[null,{"$f":"F13","v":"Муниципальное бюджетное общеобразовательное учреждение \"Средняя общеобразовательная школа № 28 \" г. Уссурийска Уссурийского городского округа"}]
[]
[null,"наименование учреждения"]
[null,"разработан в соответствии с действующим Порядком, утвержденным постановлением администрации Уссурийского городского округа от 08.07.2011г. №1658-НПА."]
[null,"Расчеты, приведенные в пояснительной записке, соответствуют информации о планируемых объемах расходных обязательств. Расчеты обоснованны и экономически целесообразны."]
[]
[]
[]
[null,"Начальник финансово-экономического отдела управления образования и молодежной политики",null,null,null,null,null,null,null,null,"Н. А. Вялкова"]
[]
[null,"И.о. директора МКУ ЦБ УО ",null,null,null,null,null,null,null,null,"И. А. Дзюба"]
[]
[null,null,null,null,null,null,null,null,null,"___________ 20 ___ г."]
[null,"Е.Е. Гончар"]
[null,"32-43-35"]